{"text_format":"2","workbook":"xlsx","n_sheets":8,"sheets":["Form1-1","Form1-2","Form1-3","Form1-4","Form1-5","Field of Study","AutoFill","Dropdown"],"not_rendered":{"charts":0,"images":0,"macros":0,"external_links":0,"defined_names":7,"comments":0,"pivot_tables":0},"unopened":[],"bounds":{"document_bytes":16777216,"sheet_cells":100000,"run_cost":"one","rows_first":2000,"rows_last":500,"rows_between":2000,"halvings":0,"cell_chars":16384,"cell_head_chars":4096},"cells_cut":0,"cells_raw":0,"read":"whole","date_system":"1900"}

{"sheet":"Form1-1","index":0,"n_rows":37,"n_cols":25,"rows_kept":37,"cut":false,"hidden":false,"merged":[[35,21,35,27],[35,0,35,6],[24,7,24,27],[36,0,36,6],[36,7,36,27],[29,0,29,27],[27,0,27,6],[34,0,34,6],[35,7,35,13],[34,14,34,20],[35,14,35,20],[34,7,34,13],[27,7,27,27],[34,21,34,27],[31,0,31,27],[33,0,33,27],[0,24,0,27],[9,0,9,5],[10,0,10,5],[11,0,11,5],[9,6,9,11],[10,6,10,11],[9,12,9,17],[9,18,9,23],[2,0,2,27],[1,0,1,27],[15,19,15,22],[17,7,17,27],[18,0,18,6],[19,0,19,6],[19,14,19,20],[19,21,19,27],[17,0,17,6],[16,21,16,27],[15,0,15,3],[15,4,15,9],[15,23,15,27],[16,0,16,6],[16,7,16,13],[16,14,16,20],[26,21,26,27],[18,7,18,13],[18,14,18,20],[21,7,21,13],[26,17,26,20],[18,21,18,27],[19,7,19,13],[26,7,26,8],[26,9,26,16],[25,0,25,6],[26,0,26,6],[21,0,22,6],[13,0,14,3],[20,14,20,20],[7,6,7,11],[4,0,5,27],[7,0,8,5],[8,6,8,11],[12,6,12,11],[11,12,11,17],[12,12,12,17],[10,12,10,17],[10,18,10,23],[12,18,12,23],[11,18,11,23],[12,0,12,5],[11,6,11,11],[20,0,20,6],[13,19,13,22],[14,19,14,22],[25,7,25,16],[25,17,25,27],[9,24,12,27],[22,7,22,13],[13,23,14,27],[15,10,15,13],[15,14,15,18],[13,14,13,18],[13,10,14,13],[14,14,14,18],[20,7,20,13],[20,21,20,27],[13,4,14,9],[24,0,24,6]]}
[{"$nulls":24},"Form1-1"]
["■黄色セル＝記入必須 Yellow:Required　　　■灰色セル＝記入不要 Gray:No entry required　　　　　　　　　　　　　　　　　　　　　　\n"]
["■水色セル＝あてはまる場合のみ記入する Light Blue:Fill in only if applicable"]
[]
["琉球大学　短期交換留学プログラム申請書\nApplication Form for the Short-Term International Exchange Program"]
[]
[]
["申請日 Application Date"]
[{"$nulls":6},"(YYYY/MM/DD)"]
["申請者情報\nApplicant Information",{"$nulls":5},"姓 Last Name",{"$nulls":5},"名 First Name",{"$nulls":5},"ミドルネーム Middle Name",{"$nulls":5},"写真\nPhoto"]
["氏名（アルファベット）\nName in alphabet"]
["氏名（カタカナ）\nName in Katakana"]
["氏名（自国語）\nName in your language"]
["性別\nSex",{"$nulls":9},"生年月日\nDate of Birth",{"$nulls":8},"年齢 age",null,null,null,{"$f":"IF(O14=0,\" \",DATEDIF(O14,\"2026/4/1\",\"Y\"))","v":" "}]
[{"$nulls":14},"(YYYY/MM/DD)",{"$nulls":4},"*As of April 1st, 2026"]
["国籍\nNationality",{"$nulls":9},"日本国籍の有無\nJapanese Nationality",{"$nulls":8},"婚姻の状態 \nMarital Status"]
["メールアドレス E-mail Address",{"$nulls":13},"電話番号 Phone Number"]
["住所 Address"]
["在籍大学名\nName of Home Institution",{"$nulls":13},"学部/研究科名\nName of Faculty/Graduate School"]
["専攻\nMajor/Concentration",{"$nulls":13},"副専攻 　Minor"]
["課程 Student Status ",{"$nulls":13},"学年　*2026年10月1日現在\nGrade　*As of October 1, 2026"]
["卒業見込み年月\nExpected date of Graduation"]
[{"$nulls":7},"(YYYY/MM)"]
[]
["申請コース\nCourse Applying For"]
["※希望する受入指導教員\nPreferred Academic Advisor",{"$nulls":16},"※4または6のコースを選択した学生のみ回答してください。\nTo be completed only by students who selected Course 4 or 6."]
["※留学中に研究したい分野\nField of Study During Exchange",{"$nulls":8},{"$f":"IFERROR(VLOOKUP(H27,'Field of Study'!A2:B46,2,TRUE),\"\")","v":""},{"$nulls":7},"その他\nOther"]
["留学希望期間\nDesired study abroad period "]
[]
["※入学後のコース変更および留学期間延長は認められません。\n　　Course changes and extensions of the study abroad period after enrollment are not permitted.\n\n"]
[]
["※留学期間中は在籍大学に所属している必要があります。留学希望期間は、自分の所属大学の卒業見込み年月を超えないようにしてください。\n   You must remain enrolled at your home university throughout the study abroad period. Please ensure that your \n   desired study abroad period does not extend beyond your expected graduation date at your home university."]
[]
["在籍大学担当者連絡先 Information about the International Office at Your Home Institution"]
["担当者氏名\nName of the Person-in-Charge",{"$nulls":13},"担当部署\nName of the Office-in-Charge"]
["メールアドレス E-mail Address",{"$nulls":13},"電話番号 Phone Number"]
["住所 Address"]

{"sheet":"Form1-2","index":1,"n_rows":44,"n_cols":25,"rows_kept":44,"cut":false,"hidden":false,"merged":[[0,24,0,27],[1,0,1,27],[24,23,24,27],[25,17,25,22],[25,23,25,27],[2,0,2,27],[26,0,27,4],[4,0,20,27],[26,5,27,10],[26,11,27,16],[26,17,27,22],[26,23,27,27],[23,0,23,27],[24,0,25,4],[24,5,25,10],[24,11,25,16],[24,17,24,22],[22,0,22,27],[29,0,29,27],[30,0,31,6],[30,7,31,13],[30,14,30,20],[30,21,30,27],[31,14,31,20],[31,21,31,27],[42,16,42,18],[42,22,42,23],[39,22,39,23],[39,24,39,27],[40,22,40,23],[40,24,40,27],[41,16,41,18],[41,19,41,21],[41,22,41,23],[41,24,41,27],[43,16,43,18],[43,19,43,21],[43,22,43,23],[43,24,43,27],[39,2,39,15],[40,2,40,15],[41,2,41,15],[43,2,43,5],[39,16,39,18],[39,19,39,21],[40,16,40,18],[40,19,40,21],[43,7,43,13],[42,2,42,15],[42,24,42,27],[42,19,42,21],[38,2,38,15],[32,0,32,6],[32,7,32,13],[32,14,32,20],[32,21,32,27],[34,0,34,6],[34,7,34,13],[34,14,34,20],[34,21,34,27],[36,0,36,27],[33,0,33,6],[33,7,33,13],[33,14,33,20],[33,21,33,27]]}
[{"$nulls":24},"Form1-2"]
["志望動機、日本・沖縄での学習・研究計画\nPurpose of Study and Study/Research Plan in Japan/Okinawa\n"]
["本学に留学したい理由および留学期間中の学習（研究）計画を、できるだけ具体的かつ詳細に記入してください。日本語で記入できる方は、必ず日本語でご記入ください。\nExplain your purpose of application and your study or research plan during the period of stay at the University of the Ryukyus as concretely and in as much detail as possible. If you are proficient in Japanese, please write in Japanese."]
{"$rows_empty":19}
["語学能力　Language Ability"]
["自分の語学能力を4段階で評価してください。不可／可／良／優\nPlease Evaluate Your Language proficiency of each languages in 4 Scales. Poor / Fair / Good / Excellent"]
["言語(Language)",{"$nulls":4},"日本語 (Japanese)",{"$nulls":5},"英  語 (English)",{"$nulls":5},"その他 (Other)",{"$nulls":5},"その他 (Other)"]
[]
["知識のレベル\nLevel of Ability"]
[]
[]
["外国語能力試験等の保有スコア・級があれば記入してください。\nIf you have any language proficiency test scores or certifications, please indicate them below"]
["試験名称 Name of Test",{"$nulls":6},"日本語能力試験\nJLPT",{"$nulls":6},"その他 (Other)",{"$nulls":6},"その他 (Other)"]
[]
["受験級/スコア Level Taken/Score"]
["受験日 Date Taken\n(YYYY/MM)"]
["結果 Result"]
[]
["日本語学習歴　※□に✔をつけ、学習期間を記入してください\nHistory of Japanese Language Study *Check column(s) and fill in the total duration of your studies."]
[]
[null,false,"学習したことがない No prior study experience"]
[null,false,"自宅学習 Off-campus study",{"$nulls":16},"年　Year(s)",{"$nulls":4},"ヶ月month(s)"]
[null,false,"高校　High School",{"$nulls":16},"年　Year(s)",{"$nulls":4},"ヶ月month(s)"]
[null,false,"大学　University",{"$nulls":16},"年　Year(s)",{"$nulls":4},"ヶ月month(s)"]
[null,false,"日本語学校・塾 Japanese Language School/Private School",{"$nulls":16},"年　Year(s)",{"$nulls":4},"ヶ月month(s)"]
[null,false,"その他　Other",null,null,null,"（",{"$nulls":7},"）",{"$nulls":4},"年　Year(s)",{"$nulls":4},"ヶ月month(s)"]

{"sheet":"Form1-3","index":2,"n_rows":18,"n_cols":26,"rows_kept":18,"cut":false,"hidden":false,"merged":[[0,24,0,27],[3,0,3,27],[1,0,1,27],[18,29,19,29],[20,29,21,29],[9,25,9,27],[9,21,9,23],[11,25,11,27],[18,0,21,27],[13,21,13,23],[15,21,15,23],[7,0,7,19],[9,0,9,19],[7,21,7,23],[7,25,7,27],[5,1,5,27],[17,0,17,27],[13,0,13,19],[15,0,15,19],[13,25,13,27],[11,0,11,19],[11,21,11,23],[15,25,15,27]]}
[{"$nulls":24},"Form1-3"]
["奨学金およびプログラム参加に関する確認\nScholarship and Program Participation Confirmation"]
[]
["交換留学生を対象とした奨学金は3種類あります。この書類の内容は、奨学金の選考には影響しません。また、奨学金の受給を保証するものではありません。奨学金の採否については、琉球大学および各奨学金団体が、それぞれの選考基準に基づいて決定します。\nWe offer three types of scholarships for exchange students.Submission of this document will not affect the selection of scholarship recipients, nor does it guarantee that you will receive a scholarship. Selection of recipients is conducted by the University of the Ryukyus and the respective scholarship organizations based on their evaluation criteria."]
[]
["\n※","JASSO奨学金および琉球大学QUEST奨学金の申請者は、留学期間中に他の団体から受ける経済的支援や奨学金の総額が月額80,000円を超えてはなりません。琉球大学後援財団奨学金の申請者は、月額60,000円を超えてはなりません。\nApplicants for JASSO Scholarship and QUEST Scholarship must ensure that the total amount of financial support or scholarships received from other organizations during their study abroad does not exceed 80,000 JPY per month. Applicants for the UR Foundation Scholarship must ensure that the total amount of support does not exceed 60,000 JPY per month."]
[]
["（1）奨学金に採択されなくてもRISEプログラムに参加したいですか？\n　　　　Do you wish to participate in the RISE Program even without scholarships?",{"$nulls":19},false,"はい Yes",null,null,false,"いいえ No"]
[]
["（2）日本学生支援機構（JASSO）奨学金への申請を希望しますか？\n　　　　Do you wish to apply for Japan Student Services Organization (JASSO) \n　　　　scholarship？",{"$nulls":19},false,"はい Yes",null,null,false,"いいえ No"]
[]
["（3）琉球大学QUEST基金奨学金への申請を希望しますか？\n　　　　Do you wish to apply for The University of the Ryukyus QUEST scholarship?",{"$nulls":19},false,"はい Yes",null,null,false,"いいえ No"]
[]
["（4）琉球大学後援財団国際交流奨励事業への申請を希望しますか？\n　　　　Do you wish to apply for The University of the Ryukyus Foundation \n　　　　scholarship?",{"$nulls":19},false,"はい Yes",null,null,false,"いいえ No"]
[]
["（5）琉球大学後援財団国際交流支援業へ申請するために、本申請書及び成績証明書を\n　　　　当財団へ提供することに同意しますか？\n　　　　I agree to provide this application form and my academic transcript \n　　　　to the University of the Ryukyus Foundation in order to apply for the \n　　　　Foundation’s scholarship.",{"$nulls":19},false,"はい Yes"]
[]
["（6）奨学金を希望する理由\n　　　　Reason for applying for Scholarship"]

{"sheet":"Form1-4","index":3,"n_rows":36,"n_cols":25,"rows_kept":36,"cut":false,"hidden":false,"merged":[[33,0,33,6],[27,2,27,26],[32,0,32,21],[0,24,0,27],[23,2,23,26],[19,2,19,26],[21,2,21,26],[15,2,15,27],[13,5,13,26],[3,0,3,27],[7,2,7,12],[9,2,9,12],[11,2,11,12],[13,2,13,4],[35,0,35,6],[35,7,35,27],[1,0,1,27],[29,2,29,26],[30,2,30,26],[17,2,17,27],[33,7,33,13],[33,14,33,20],[33,21,33,27],[34,0,34,6],[34,7,34,13],[34,14,34,20],[34,21,34,27],[5,0,5,27],[26,2,26,26],[24,2,24,26]]}
[{"$nulls":24},"Form1-4"]
["健康状況報告\nHealth Declaration"]
[]
["記述内容は学習指導上の参考とさせていただくために必要ですので、現状について正直に記入してください。なお、記述内容については学習指導以外の目的には使用しません。病気を理由に留学生の受入れを拒否することはありません。\nThis declaration serves as a necessary and important source of reference when administering academic guidance. As such, please respond to all questions truthfully and to the best of your knowledge. Please be assured that all provided information will not be used for any other purposes. University of the Ryukyus does NOT reject any applicants who have health problems."]
[]
["生活上、学習上配慮が必要な場合に対応するため、肉体的または精神的な持病のある方は、その詳細を記入してください。\nPlease provide us with the details of any physical or mental conditions that may require special care or attention in the course of your day-to-day life on campus."]
[]
[null,false,"対人恐怖症 anthrophobia, social phobia",{"$nulls":12},false,"閉所恐怖症 claustrophobia, fear of enclosed places"]
[]
[null,false,"注意欠陥多動性障害 ADHD",{"$nulls":12},false,"高所恐怖症 acrophobia, fear of heights"]
[]
[null,false,"学習障害　learning disability",{"$nulls":12},false,"パニック障害 panic disorder"]
[]
[null,false,"その他 Other"]
[]
[null,false,"長い間（90分）、座っていることが苦手だ \nInability to remain sitting for long periods of time (90 minutes)"]
[]
[null,false,"人前で発表するのは極度に（お腹を下したり、吐き気があったりと）緊張する\nExtreme anxiety (exhibited through symptoms such as nausea and diarrhea) when asked to speak publicly"]
[]
[null,false,"頭痛、偏頭痛がある　Headaches or migraine"]
[]
[null,false,"PMS・生理痛が重い方（授業に出るのが難しいくらいだ）\nSerious PMS or painful period cramps that hinder class attendance"]
[]
[null,false,"アレルギー（食物、金属、ゴム、動物、植物…他）がある場合は具体的に記入してください。\nPhysical allergies to types of food, metals, rubber, animals or plants etc.　Please state in detail:"]
[]
[]
[null,false,"ヴィーガンやベジタリアンなど、食事について特別な配慮が必要な場合は具体的に記入してください。\nSpecial dietary concerns, e.g. vegan/vegetarian diets etc.　State in detail:"]
[]
[]
[null,false,"留学期間中に日本で服用する処方薬がある場合は薬の名前・用途・服用頻度等を記入してください。\nIf you take any prescription medication during the exchange program, please write the name, purpose, and frequency of use."]
[]
[]
["緊急連絡先 (Emergency contact)"]
["氏名 Name",{"$nulls":13},"申請者との関係 \nRelationship to the Applicant"]
["メールアドレス E-mail Address",{"$nulls":13},"電話番号 Phone Number"]
["住所 Address"]

{"sheet":"Form1-5","index":4,"n_rows":18,"n_cols":23,"rows_kept":18,"cut":false,"hidden":false,"merged":[[12,13,12,25],[8,13,8,25],[12,0,13,0],[12,1,13,1],[12,2,13,2],[0,22,0,25],[6,13,6,25],[1,0,1,25],[3,0,3,25],[11,13,11,25],[6,3,6,12],[7,3,7,12],[8,3,8,12],[10,0,11,0],[10,1,11,1],[10,2,11,2],[10,3,11,12],[17,13,17,25],[5,3,5,12],[5,13,5,25],[13,13,13,25],[14,13,14,25],[15,13,15,25],[15,3,15,12],[16,3,16,12],[17,3,17,12],[16,13,16,25],[7,13,7,25],[9,3,9,12],[9,13,9,25],[10,13,10,25],[14,3,14,12],[12,3,13,12]]}
[{"$nulls":22},"Form1-5"]
["チェックリスト　CHECK LIST"]
[]
["申請には以下の書類を全て揃え、全ての□に✔が入力できてから提出すること。\nPlease ensure that you check all the corresponding boxes before submitting your application:"]
[]
[null,null,"Format","必要書類　Required documents",{"$nulls":9},"注意　Notes"]
[false,"①","Excel","<Form 1>\n短期交換留学プログラム申請書 \nApplication Form for the Short-Term International Exchange Program ",{"$nulls":9},"手書き不可。必ずタイプ入力すること。\nThis form must be completed by typing. Handwriting is not permitted."]
[false,"②","PDF"," <Form 2>\n短期交換留学プログラム同意書\nConsent Form for the Short-Term International Exchange Program "]
[false,"③","PDF","<Form 3>\n短期交換留学プログラム留学経費支弁書\nDeclaration of Financial Support ",{"$nulls":9},"財務能力を証明する書類（預金残高証明書、預金通帳のコピー、所得証明書等）を提出すること。英語・日本語以外で作成された書類には翻訳を添付すること。\nPlease attach financial documents (e.g., bank statements, bankbook, income certificate). Translations must be attached if the documents are not written in English or Japanese."]
[false,"④","PDF"," <Form 4>\n短期交換留学プログラム候補者在籍証明書\nCertificate of Enrollment",{"$nulls":9},"申請者本人ではなく、必ず在籍機関の担当者が記入すること。\nThis form must be completed by the person in charge at the applicant’s home institution, not by the applicant."]
[false,"⑤","PDF"," <Form 5>\n健康診断書\nCertificate of Health ",{"$nulls":9},"入国前結核スクリーニング対象国からの申請者は、日本国政府指定した医療機関が発行する結核非発病証明書を提出すること。詳細は厚生労働省ウェブサイトを参照。\nApplicants from countries subject to pre-entry tuberculosis (TB) screening must also submit a TB Clearance Certificate issued by a medical institution designated by the Government of Japan. For details, refer to the Ministry of Health, Labour and Welfare website."]
[{"$nulls":13},"https://jpets.mhlw.go.jp/jp/"]
[false,"⑥","JPEG\nPNG","証明写真\nId photo",{"$nulls":9},"上半身、無背景、3cm×4cm、明瞭で、6か月以内に撮影されたもの。規格の詳細は出入国在留管理庁ウェブサイトを参照。\nThe photo must be 3 cm × 4 cm, clearly show the upper half of the body, have a plain background, and be taken within the past six months. For detailed requirements, refer to the website of the Immigration Services Agency of Japan."]
[{"$nulls":13},"https://www.moj.go.jp/isa/applications/status/photo_info_00002.html\n"]
[false,"⑦","PDF","推薦書\nLetter of Recommendation",{"$nulls":9},"申請者をよく知る教員等により、学業成績、人物的資質、留学意欲などについて具体的かつ客観的に記載されたもの。\nWritten by a teacher or someone familiar with the applicant, providing a clear and objective description of the applicant’s academic performance, personal qualities, and motivation for studying abroad."]
[false,"⑧","PDF","学業成績証明書\nAcademic transcript",{"$nulls":9},"成績評価制度、各科目を履修した年度と学期が記載されたもの。\n英語・日本語以外で発行された場合は必ず翻訳を添付すること。\nMust include the grading system and the academic year and semester for each course. Attach a translation if issued in a language other than English or Japanese."]
[false,"⑨","PDF","パスポートのカラーコピー（個人情報が記載されているページ）\nColor copy your passport (page with personal details)",{"$nulls":9},"写真ではなく、スキャンコピーを提出すること。\nMust be submitted as a scanned copy not a photo taken with your phone."]
[false,"⑩","Excel","在留資格認定証明書交付申請書\nApplication form of Certificate of Eligibility"]

{"sheet":"Field of Study","index":5,"n_rows":46,"n_cols":2,"rows_kept":46,"cut":false,"hidden":false,"merged":[]}
["No.","専攻分野　Field of Study"]
[1,"法学 \nLaw"]
[2,"政治・国際関係学 \nPolitics/International Relations"]
[3,"哲学・教育学\nPhilosophy / Pedagogy"]
[4,"心理学\nPsychology"]
[5,"社会学\nSociology"]
[6,"歴史・民俗学（沖縄）\nOkinawan History / Folklore Studies "]
[7,"言語学（沖縄）\nLinguistics (Ryukyuan Dialects)"]
[8,"文学（沖縄）\nOkinawan Literature "]
[9,"観光地域デザイン\nTourism Sciences"]
[10,"経営学\nManagement"]
[11,"経済学\nEconomics"]
[12,"言語学　（沖縄以外）\nLinguistics (excluding Okinawa)"]
[13,"文化、文学（沖縄以外）\nCulture / Literature (excluding Okinawa)"]
[14,"地理学\nGeography"]
[15,"歴史学\nHistory"]
[16,"人類学\nAnthropology"]
[17,"教育学\nElementary and Secondary School Teacher Training"]
[18,"数学\nMathematics"]
[19," 物理学\nPhysics"]
[20,"地学\nEarth Science"]
[21,"化学\nChemistry"]
[22,"生物学\nBiology"]
[23,"医学\nMedicine"]
[24,"看護学\nHealth Sciences"]
[25,"機械工学\nMechanical Engineering"]
[26,"エネルギー工学\nEnergy Engineering"]
[27,"電気工学\nElectrical Engineering"]
[28,"電子工学\nElectronics"]
[29,"土木工学\nCivil Engineering"]
[30,"建築学\nArchitecture"]
[31,"情報工学\nComputer Science"]
[32,"農林経済学\nAgricultural and Forest Economics"]
[33,"植物開発学\nPlant Breeding Science"]
[34,"循環畜産学\nSustainable Animal Production Science"]
[35,"農林共生学\nHuman and Agricultural Symbiotic Science"]
[36,"植物機能学\nPlant Functional Science"]
[37,"森林環境学\nForest Science"]
[38,"動物機能学\nAnimal Functional Science"]
[39,"生態環境科学\nEcology and Environmental Science"]
[40,"バイオシステム工学\nBiosystems Engineering"]
[41,"地域環境工学\nRural Environmental Engineering"]
[42,"生物機能開発学\nBiotechnology"]
[43,"発酵・生命科学\nFermentation and Life Science"]
[44,"食品機能科学\nFood Science and Nutrition"]
[45,"健康栄養科学\nHealth and Nutritional Science"]

{"sheet":"AutoFill","index":6,"n_rows":2,"n_cols":71,"rows_kept":2,"cut":false,"hidden":true,"merged":[]}
["申請者氏名\n（アルファベット）","申請者氏名\n（ヨミガナ）","申請者氏名\n（自国語）","性別","生年月日","年齢","国籍","日本国籍\n有無","婚姻の\n状態 ","メールアドレス","住所 Address","在籍大学名","学部/研究科名","専攻","副専攻","課程","学年","卒業見込み年月","申請コース","希望受入教員","希望研究分野","希望留学期間","受入月数","担当者氏名","担当者部署","担当者メールアドレス","担当者電話番号","担当者住所","志望動機・研究計画","日本語\nレベル","英語\nレベル","その他の言語1","その他の言語1\nレベル","その他の言語2","その他の言語2\nレベル","JLPT\n受験級/スコア","JLPT\n受験日","JLPT\n結果","その他の試験１\n名称","その他の試験１\n受験級/スコア","その他の試験１\n受験日","その他の試験１\n結果","その他の試験２\n名称","その他の試験２\n受験級/スコア","その他の試験２\n受験日","その他の試験２\n結果","私費留学希望有無","申請希望JASSO","申請希望\nQUEST","\n申請希望\n後援財団\n","後援財団\n同意","奨学金\n申請理由","対人恐怖症","ADHD","学習障害","閉所恐怖症","高所恐怖症","パニック障害","持病その他","長時間座ることが苦手","人前で発表は極度に緊張","頭痛、偏頭痛がある","PMS・生理痛が重い","アレルギー","食事","服用薬","緊急連絡先\n氏名","申請者との関係","緊急連絡先\nメールアドレス","緊急連絡先\n電話番号","緊急連絡先\n住所"]
[{"$f":"UPPER('Form1-1'!G11&\" \"&'Form1-1'!M11&\" \"&'Form1-1'!S11)","v":"  "},{"$f":"UPPER('Form1-1'!G12&\" \"&'Form1-1'!M12&\" \"&'Form1-1'!S12)","v":"  "},{"$f":"UPPER('Form1-1'!G13&\" \"&'Form1-1'!M13&\" \"&'Form1-1'!S13)","v":"  "},{"$f":"IF(ISNUMBER(SEARCH(\"女性\", 'Form1-1'!E14)), \"女性\", IF(ISNUMBER(SEARCH(\"男性\", 'Form1-1'!E14)), \"男性\",))","v":0},{"$f":"'Form1-1'!O14","v":"00:00:00"},{"$f":"'Form1-1'!X14","v":" "},{"$f":"'Form1-1'!E16","v":0},{"$f":"IF(ISNUMBER(SEARCH(Dropdown!B2, 'Form1-1'!O16)), \"有\", IF(ISNUMBER(SEARCH(Dropdown!B3, 'Form1-1'!O16)), \"無\",))","v":0},{"$f":"IF(ISNUMBER(SEARCH(Dropdown!C2, 'Form1-1'!X16)), \"未婚\", IF(ISNUMBER(SEARCH(Dropdown!C3, 'Form1-1'!X16)), \"既婚\",))","v":0},{"$f":"'Form1-1'!H17","v":0},{"$f":"'Form1-1'!H18","v":0},{"$f":"'Form1-1'!H19","v":0},{"$f":"'Form1-1'!V19","v":0},{"$f":"'Form1-1'!H20","v":0},{"$f":"IF('Form1-1'!V20=0,\"\",'Form1-1'!V20)","v":""},{"$f":"IF(ISNUMBER(SEARCH(Dropdown!D2,'Form1-1'!H21)),\"学部\",\nIF(ISNUMBER(SEARCH(Dropdown!D3,'Form1-1'!H21)),\"修士\",\nIF(ISNUMBER(SEARCH(Dropdown!D4,'Form1-1'!H21)),\"博士\",\nIF(ISNUMBER(SEARCH(Dropdown!D5,'Form1-1'!H21)),\"短大\",\nIF(ISNUMBER(SEARCH(Dropdown!D6,'Form1-1'!H21)),\"高専\",)))))","v":0},{"$f":"'Form1-1'!V21","v":0},{"$f":"'Form1-1'!H22","v":"00:00:00"},{"$f":"IF(ISNUMBER(SEARCH(Dropdown!F2,'Form1-1'!H25)),\"日本・沖縄学習コース\",\nIF(ISNUMBER(SEARCH(Dropdown!F3,'Form1-1'!H25)),\"グローカルリーダー育成コース\",\nIF(ISNUMBER(SEARCH(Dropdown!F4,'Form1-1'!H25)),\"日本語教員養成コース\",\nIF(ISNUMBER(SEARCH(Dropdown!F5,'Form1-1'!H25)),\"学部専門コース\",\nIF(ISNUMBER(SEARCH(Dropdown!F6,'Form1-1'!H25)),\"学部専門コース-日本語・日本文化研修コース\",\nIF(ISNUMBER(SEARCH(Dropdown!F7,'Form1-1'!H25)),\"大学院専門コース\",))))))","v":0},{"$f":"IF('Form1-1'!H26=0,\"\",'Form1-1'!H26)","v":""},{"$f":"IF('Form1-1'!J27=0,\"\",'Form1-1'!J27)","v":""},{"$f":"IF(ISNUMBER(SEARCH(Dropdown!G2,'Form1-1'!H28)),\"2026/4-2026/9\",\nIF(ISNUMBER(SEARCH(Dropdown!G3,'Form1-1'!H28)),\"2026/4-2027/3\",\nIF(ISNUMBER(SEARCH(Dropdown!G4,'Form1-1'!H28)),\"2026/10-2027/3\",\nIF(ISNUMBER(SEARCH(Dropdown!G5,'Form1-1'!H28)),\"2026/10-2027/9\",))))","v":0},{"$f":"IF(ISNUMBER(SEARCH(Dropdown!G2,'Form1-1'!H28)),\"6か月\",\nIF(ISNUMBER(SEARCH(Dropdown!G3,'Form1-1'!H28)),\"12か月\",\nIF(ISNUMBER(SEARCH(Dropdown!G4,'Form1-1'!H28)),\"6か月\",\nIF(ISNUMBER(SEARCH(Dropdown!G5,'Form1-1'!H28)),\"12か月\",))))","v":0},{"$f":"'Form1-1'!H35","v":0},{"$f":"'Form1-1'!V35","v":0},{"$f":"'Form1-1'!H36","v":0},{"$f":"'Form1-1'!V36","v":0},{"$f":"'Form1-1'!H37","v":0},{"$f":"'Form1-2'!A5","v":0},{"$f":"'Form1-2'!F27","v":0},{"$f":"'Form1-2'!L27","v":0},{"$f":"IF('Form1-2'!R26=0,\"\",'Form1-2'!R26)","v":""},{"$f":"IF(ISNUMBER(SEARCH(Dropdown!H2,'Form1-2'!R27)),\"不可\",\nIF(ISNUMBER(SEARCH(Dropdown!H3,'Form1-2'!R27)),\"可\",\nIF(ISNUMBER(SEARCH(Dropdown!H4,'Form1-2'!R27)),\"良\",\nIF(ISNUMBER(SEARCH(Dropdown!H5,'Form1-2'!R27)),\"優\",))))","v":0},{"$f":"IF('Form1-2'!X26=0,\"\",'Form1-2'!X26)","v":""},{"$f":"IF(ISNUMBER(SEARCH(Dropdown!H2,'Form1-2'!X27)),\"不可\",\nIF(ISNUMBER(SEARCH(Dropdown!H3,'Form1-2'!X27)),\"可\",\nIF(ISNUMBER(SEARCH(Dropdown!H4,'Form1-2'!X27)),\"良\",\nIF(ISNUMBER(SEARCH(Dropdown!H5,'Form1-2'!X27)),\"優\",))))","v":0},{"$f":"IF('Form1-2'!H33=0,\"\",'Form1-2'!H33)","v":""},{"$f":"IF('Form1-2'!H34=0,\"\",'Form1-2'!H34)","v":""},{"$f":"IF(ISNUMBER(SEARCH(Dropdown!I2,'Form1-2'!H35)),\"合格\",\nIF(ISNUMBER(SEARCH(Dropdown!I3,'Form1-2'!H35)),\"不合格\",\nIF(ISNUMBER(SEARCH(Dropdown!I4,'Form1-2'!H35)),\"結果待ち\",)))","v":0},{"$f":"IF('Form1-2'!O32=0,\"\",'Form1-2'!O32)","v":""},{"$f":"IF('Form1-2'!O33=0,\"\",'Form1-2'!O33)","v":""},{"$f":"IF('Form1-2'!O34=0,\"\",'Form1-2'!O34)","v":""},{"$f":"IF(ISNUMBER(SEARCH(Dropdown!I2,'Form1-2'!O35)),\"合格\",\nIF(ISNUMBER(SEARCH(Dropdown!I3,'Form1-2'!O35)),\"不合格\",\nIF(ISNUMBER(SEARCH(Dropdown!I4,'Form1-2'!O35)),\"結果待ち\",)))","v":0},{"$f":"IF('Form1-2'!V32=0,\"\",'Form1-2'!V32)","v":""},{"$f":"IF('Form1-2'!V33=0,\"\",'Form1-2'!V33)","v":""},{"$f":"IF('Form1-2'!V34=0,\"\",'Form1-2'!V34)","v":""},{"$f":"IF(ISNUMBER(SEARCH(Dropdown!I2,'Form1-2'!V35)),\"合格\",\nIF(ISNUMBER(SEARCH(Dropdown!I3,'Form1-2'!V35)),\"不合格\",\nIF(ISNUMBER(SEARCH(Dropdown!I4,'Form1-2'!V35)),\"結果待ち\",)))","v":0},{"$f":"IF(AND('Form1-3'!U8=TRUE,'Form1-3'!Y8=FALSE),\"有\",IF(AND('Form1-3'!U8=FALSE,'Form1-3'!Y8=TRUE),\"無\"))","v":false},{"$f":"IF(AND('Form1-3'!U10=TRUE, 'Form1-3'!Y10=FALSE), \"有\", IF(AND('Form1-3'!U10=FALSE, 'Form1-3'!Y10=TRUE),\"無\" ))","v":false},{"$f":"IF(AND('Form1-3'!U12=TRUE, 'Form1-3'!Y12=FALSE), \"有\", IF(AND('Form1-3'!U12=FALSE, 'Form1-3'!Y12=TRUE),\"無\"))","v":false},{"$f":"IF(AND('Form1-3'!U14=TRUE, 'Form1-3'!Y14=FALSE), \"有\", IF(AND('Form1-3'!U14=FALSE, 'Form1-3'!Y14=TRUE), \"無\"))","v":false},{"$f":"IF('Form1-3'!U16=TRUE, \"有\", \"\")","v":""},{"$f":"IF('Form1-3'!A19=0,\"\",'Form1-3'!A19)","v":""},{"$f":"IF('Form1-4'!B8=TRUE, \"有\", \"\")","v":""},{"$f":"IF('Form1-4'!B10=TRUE, \"有\", \"\")","v":""},{"$f":"IF('Form1-4'!B12=TRUE, \"有\", \"\")","v":""},{"$f":"IF('Form1-4'!P8=TRUE, \"有\", \"\")","v":""},{"$f":"IF('Form1-4'!P10=TRUE, \"有\", \"\")","v":""},{"$f":"IF('Form1-4'!P12=TRUE, \"有\", \"\")","v":""},{"$f":"IF('Form1-4'!F14=0,\"\",'Form1-4'!F14)","v":""},{"$f":"IF('Form1-4'!B16=TRUE, \"有\", \"\")","v":""},{"$f":"IF('Form1-4'!B18=TRUE, \"有\", \"\")","v":""},{"$f":"IF('Form1-4'!B20=TRUE, \"有\", \"\")","v":""},{"$f":"IF('Form1-4'!B22=TRUE, \"有\", \"\")","v":""},{"$f":"IF('Form1-4'!C25=0,\"\",'Form1-4'!C25)","v":""},{"$f":"IF('Form1-4'!C28=0,\"\",'Form1-4'!C28)","v":""},{"$f":"IF('Form1-4'!C31=0,\"\",'Form1-4'!C31)","v":""},{"$f":"'Form1-4'!H34","v":0},{"$f":"'Form1-4'!V34","v":0},{"$f":"'Form1-4'!H35","v":0},{"$f":"'Form1-4'!V35","v":0},{"$f":"'Form1-4'!H36","v":0}]

{"sheet":"Dropdown","index":7,"n_rows":7,"n_cols":9,"rows_kept":7,"cut":false,"hidden":true,"merged":[]}
["性別\nSex","日本国籍の有無\nJapanese Nationality","婚姻の状態 \nMarital Status","課程","学年","申請コース","留学希望期間","知識のレベル","結果　　"]
["男性 \nMale","有 \nYes, I have it.","未婚 \nSingle","学部 \nUndergraduate",1,"1.日本・沖縄学習コース \n   Japan-Okinawa Studies Course","2026 Spring Semester Only (From April 2026 to September 2026)","不可 Poor","合格 Pass"]
["女性 \nFemale","無 \nNo, I don’t have it.","既婚 \nMarried","修士 \nMaster’s    ",2,"2.グローカルリーダー育成コース \n   Glocal Leadership Course","2026 Spring Semester and 2026 Fall Semester (From April 2026 to March 2027)","可 Fair","不合格 Fail"]
[null,null,null,"博士 \nDoctorate",3,"3.日本語教員養成コース\n   Japanese Language Teacher Training Course","2026 Fall Semester Only (From October 2026 to March 2027)","良 Good","結果待ち Will be issued soon"]
[null,null,null,"短大 \nJunior College",4,"4.学部専門コース\n   Major Studies Course (Undergraduate)","2026 Fall Semester and 2026 Spring Semester (From October 2026 to September 2027)","優 Excellent"]
[null,null,null,"高専 \nCollege of Technology",5,"5.学部専門コース-日本語・日本文化研修コース\n   Major Studies Course (Undergraduate)-Japanese Language and Culture Studies"]
[{"$nulls":4},6,"6.大学院専門コース\n   Major Studies Course (Graduate)"]